fUSD/lending_fUSD_20260606
["ID","MTS","AMOUNT","RATE_DAILY","PERIOD"]
[424295675,1780755057000,-500.0,0.00031288,2]
[424295695,1780755057000,-617.346821,0.00031317,7]
[424295694,1780755057000,-1094.222631,0.00031317,7]
[424295693,1780755057000,-400.0,0.00031317,30]
[424295685,1780755057000,-500.0,0.00031288,2]
[424295683,1780755057000,-500.0,0.00031288,2]
[424295696,1780755057000,-1094.222631,0.00031317,7]
[424295682,1780755057000,-500.0,0.00031288,2]
[424295676,1780755057000,-500.0,0.00031288,2]
[424295680,1780755057000,-500.0,0.00031288,2]
[424295671,1780755057000,-500.0,0.00031288,2]
[424295679,1780755057000,-500.0,0.00031288,2]
[424295777,1780755058000,-150.0,0.0003161,2]
[424295778,1780755058000,-150.0,0.0003161,2]
[424295761,1780755058000,-4241.46,0.000315,7]
[424295760,1780755058000,-1908.54,0.000315,7]
[424295758,1780755058000,-502.7803597,0.00031484,7]
[424295759,1780755058000,-150.0,0.0003149,7]
[424295752,1780755058000,-150.0,0.00031433,7]
[424295757,1780755058000,-150.0,0.00031467,7]
[424295763,1780755058000,-279.65655325,0.00031507,30]
[424295762,1780755058000,-150.0,0.00031502,7]
[424295764,1780755058000,-502.7803597,0.00031517,7]
[424295776,1780755058000,-150.0,0.00031605,7]
[424295756,1780755058000,-150.0,0.00031467,7]
[424295766,1780755058000,-150.0,0.00031528,7]
[424295784,1780755058000,-150.0,0.0003161,2]
[424295768,1780755058000,-150.0,0.00031536,7]
[424295769,1780755058000,-150.0,0.00031546,7]
[424295765,1780755058000,-150.0,0.00031521,7]
[424295775,1780755058000,-1399.73,0.000316,14]
[424295770,1780755058000,-502.7803597,0.00031551,7]
[424295773,1780755058000,-150.0,0.00031581,7]
[424295771,1780755058000,-150.0,0.00031571,7]
[424295772,1780755058000,-150.0,0.00031574,7]
[424295774,1780755058000,-502.7803597,0.00031584,7]
[424295782,1780755058000,-150.0,0.0003161,2]
[424295779,1780755058000,-150.0,0.0003161,2]
[424295783,1780755058000,-150.0,0.0003161,2]
[424295753,1780755058000,-150.0,0.00031444,7]
[424295767,1780755058000,-150.0,0.00031535,7]
[424295754,1780755058000,-502.7803597,0.0003145,7]
[424295722,1780755058000,-1000.0,0.0003132,2]
[424295751,1780755058000,-502.7803597,0.00031417,7]
[424295781,1780755058000,-150.0,0.0003161,2]
[424295723,1780755058000,-1000.0,0.0003132,2]
[424295724,1780755058000,-562.1,0.0003132,2]
[424295726,1780755058000,-150.0,0.00031329,7]
[424295728,1780755058000,-1092.0,0.00031339,30]
[424295727,1780755058000,-936.0,0.00031339,30]
[424295725,1780755058000,-757.0,0.00031329,5]
[424295730,1780755058000,-2972.0,0.00031339,30]
[424295733,1780755058000,-502.7803597,0.0003135,7]
[424295735,1780755058000,-333.0,0.0003135,30]
[424295736,1780755058000,-353.0,0.0003135,30]
[424295731,1780755058000,-4110.0,0.00031339,30]
[424295732,1780755058000,-1116.0,0.00031342,30]
[424295755,1780755058000,-150.0,0.00031467,7]
[424295734,1780755058000,-2510.0,0.0003135,30]
[424295746,1780755058000,-150.0,0.00031398,7]
[424295747,1780755058000,-150.0,0.00031399,7]
[424295748,1780755058000,-150.0,0.00031406,7]
[424295749,1780755058000,-699.0,0.00031409,6]
[424295750,1780755058000,-150.0,0.00031414,7]
[424295742,1780755058000,-150.0,0.0003136,7]
[424295737,1780755058000,-1918.0,0.0003135,30]
[424295740,1780755058000,-204.0,0.0003135,30]
[424295741,1780755058000,-150.0,0.00031354,7]
[424295739,1780755058000,-786.0,0.0003135,30]
[424295745,1780755058000,-150.0,0.00031388,7]
[424295744,1780755058000,-502.7803597,0.00031383,7]
[424295743,1780755058000,-150.0,0.00031364,7]
[424295738,1780755058000,-360.0,0.0003135,30]
[424295780,1780755058000,-150.0,0.0003161,2]
[424295729,1780755058000,-675.0,0.00031339,30]
[424295785,1780755058000,-200.0,0.00031612,2]
[424295827,1780755058000,-150.0,0.00031881,7]
[424295828,1780755058000,-1021.40739509,0.00031884,2]
[424295820,1780755058000,-150.0,0.00031847,7]
[424295821,1780755058000,-502.7803597,0.00031852,7]
[424295824,1780755058000,-1047.88345871,0.00031863,2]
[424295823,1780755058000,-150.0,0.00031861,7]
[424295825,1780755058000,-934.39225997,0.00031863,2]
[424295822,1780755058000,-150.0,0.00031853,7]
[424295826,1780755058000,-1227.0,0.00031866,2]
[424295830,1780755058000,-502.7803597,0.00031885,7]
[424295838,1780755058000,-1137.9592572,0.00031909,2]
[424295840,1780755058000,-947.15633079,0.00031909,2]
[424295839,1780755058000,-996.27843778,0.00031909,2]
[424295829,1780755058000,-1102.04509414,0.00031884,2]
[424295832,1780755058000,-150.0,0.00031895,7]
[424295834,1780755058000,-150.0,0.00031898,7]
[424295833,1780755058000,-150.0,0.00031896,7]
[424295837,1780755058000,-1003.43692512,0.00031909,2]
[424295831,1780755058000,-14184.8,0.0003189,14]
[424295835,1780755058000,-1054.170439,0.00031909,2]
[424295836,1780755058000,-923.12379814,0.00031909,2]
[424295842,1780755058000,-502.7803597,0.00031919,7]
[424295841,1780755058000,-150.0,0.00031916,7]
[424295843,1780755058000,-903.61716168,0.00031933,2]
[424295847,1780755058000,-1046.35786872,0.00031933,2]
[424295848,1780755058000,-2530.2557063,0.00031933,2]
[424295846,1780755058000,-920.02242734,0.00031933,2]
[424295845,1780755058000,-1011.13691631,0.00031933,2]
[424295791,1780755058000,-162.0,0.00031644,14]
[424295818,1780755058000,-1104.83716839,0.00031831,2]
[424295819,1780755058000,-150.0,0.00031841,7]
[424295844,1780755058000,-988.02518504,0.00031933,2]
[424295816,1780755058000,-150.0,0.00031812,7]
[424295817,1780755058000,-502.7803597,0.00031818,7]
[424295790,1780755058000,-150.0,0.00031644,2]
[424295786,1780755058000,-502.7803597,0.00031618,7]
[424295787,1780755058000,-150.0,0.00031626,7]
[424295789,1780755058000,-150.0,0.0003164,7]
[424295793,1780755058000,-502.7803597,0.00031651,7]
[424295801,1780755058000,-150.0,0.00031704,7]
[424295792,1780755058000,-150.0,0.00031651,7]
[424295802,1780755058000,-150.0,0.00031709,7]
[424295800,1780755058000,-150.0,0.00031704,7]
[424295794,1780755058000,-150.0,0.00031671,7]
[424295799,1780755058000,-319.04,0.000317,12]
[424295797,1780755058000,-502.7803597,0.00031685,7]
[424295796,1780755058000,-150.0,0.00031681,7]
[424295788,1780755058000,-150.0,0.00031627,7]
[424295795,1780755058000,-150.0,0.00031674,7]
[424295798,1780755058000,-1413.77247833,0.00031686,120]
[424295812,1780755058000,-150.0,0.00031778,7]
[424295814,1780755058000,-150.0,0.00031788,7]
[424295807,1780755058000,-502.7803597,0.00031752,7]
[424295809,1780755058000,-150.0,0.00031774,7]
[424295811,1780755058000,-419.0,0.00031776,2]
[424295810,1780755058000,-3642.0,0.00031776,2]
[424295813,1780755058000,-502.7803597,0.00031785,7]
[424295803,1780755058000,-150.0,0.00031717,7]
[424295806,1780755058000,-150.0,0.00031743,7]
[424295805,1780755058000,-150.0,0.00031734,7]
[424295815,1780755058000,-150.0,0.00031807,7]
[424295808,1780755058000,-150.0,0.00031762,7]
[424295804,1780755058000,-502.7803597,0.00031718,7]
[424295880,1780755059000,-215.14473434,0.00032,120]
[424295890,1780755059000,-596.1039232,0.00032,120]
[424295881,1780755059000,-178.00347184,0.00032,120]
[424295883,1780755059000,-204.1147621,0.00032,120]
[424295873,1780755059000,-269.77070607,0.00032,120]
[424295885,1780755059000,-596.1039232,0.00032,120]
[424295887,1780755059000,-1982.0770789,0.00032,120]
[424295889,1780755059000,-167.66704668,0.00032,120]
[424295882,1780755059000,-1934.66696622,0.00032,120]
[424295884,1780755059000,-409.49034585,0.00032,120]
[424295879,1780755059000,-185.82257735,0.00032,120]
[424295892,1780755059000,-700.0,0.00032,2]
[424295888,1780755059000,-1102.2918016,0.00032,120]
[424295891,1780755059000,-1497.25535455,0.00032,120]
[424295893,1780755059000,-150.0,0.00032001,7]
[424295894,1780755059000,-1051.1,0.00032013,30]
[424295895,1780755059000,-150.0,0.00032019,7]
[424295899,1780755059000,-1051.1,0.00032025,30]
[424295901,1780755059000,-397.5,0.00032037,30]
[424295896,1780755059000,-150.0,0.00032019,7]
[424295900,1780755059000,-150.0,0.00032034,7]
[424295872,1780755059000,-240.53528541,0.00032,120]
[424295897,1780755059000,-150.0,0.00032019,7]
[424295886,1780755059000,-374.66965498,0.00032,120]
[424295878,1780755059000,-1166.51690649,0.00032,120]
[424295859,1780755059000,-699.0,0.00031943,7]
[424295867,1780755059000,-1051.1,0.00032,30]
[424295898,1780755059000,-502.7803597,0.00032019,7]
[424295850,1780755059000,-2323.84436065,0.00031933,2]
[424295851,1780755059000,-2359.42708746,0.00031933,2]
[424295852,1780755059000,-1028.32602331,0.00031933,2]
[424295849,1780755059000,-1031.718542,0.00031933,2]
[424295854,1780755059000,-1418.84656136,0.00031933,2]
[424295861,1780755059000,-150.0,0.00031948,7]
[424295860,1780755059000,-150.0,0.00031944,7]
[424295862,1780755059000,-150.0,0.0003195,7]
[424295863,1780755059000,-502.7803597,0.00031952,7]
[424295853,1780755059000,-999.56207523,0.00031933,2]
[424295864,1780755059000,-150.0,0.00031985,7]
[424295865,1780755059000,-502.7803597,0.00031986,7]
[424295856,1780755059000,-983.1564169,0.00031933,2]
[424295858,1780755059000,-923.36236268,0.00031933,2]
[424295855,1780755059000,-2083.20727271,0.00031933,2]
[424295857,1780755059000,-931.10243339,0.00031933,2]
[424295866,1780755059000,-150.0,0.00031989,7]
[424295869,1780755059000,-261.26021912,0.00032,120]
[424295868,1780755059000,-167.8691505,0.00032,120]
[424295877,1780755059000,-244.09040236,0.00032,120]
[424295875,1780755059000,-272.0635658,0.00032,120]
[424295874,1780755059000,-274.85515086,0.00032,120]
[424295876,1780755059000,-210.08777575,0.00032,120]
[424295870,1780755059000,-1455.5170003,0.00032,120]
[424295871,1780755059000,-199.86562566,0.00032,120]
[424295903,1780755059000,-1051.1,0.0003205,30]
[424295907,1780755059000,-1051.1,0.00032063,30]
[424295904,1780755059000,-502.7803597,0.00032053,7]
[424295937,1780755059000,-926.031354,0.00032153,7]
[424295933,1780755059000,-194.712125,0.00032153,7]
[424295932,1780755059000,-926.031354,0.00032153,7]
[424295936,1780755059000,-194.712125,0.00032153,7]
[424295939,1780755059000,-502.7803597,0.00032153,7]
[424295948,1780755059000,-1051.1,0.00032188,30]
[424295949,1780755059000,-150.0,0.00032192,7]
[424295938,1780755059000,-926.031354,0.00032153,7]
[424295947,1780755059000,-502.7803597,0.00032186,7]
[424295950,1780755059000,-168.003,0.000322,7]
[424295940,1780755059000,-150.0,0.00032157,7]
[424295926,1780755059000,-1051.1,0.0003215,30]
[424295944,1780755059000,-1051.1,0.00032175,30]
[424295945,1780755059000,-150.0,0.00032177,7]
[424295943,1780755059000,-150.0,0.0003217,7]
[424295946,1780755059000,-150.0,0.00032177,7]
[424295951,1780755059000,-1399.73,0.000322,14]
[424295953,1780755059000,-1051.1,0.000322,30]
[424295952,1780755059000,-345.19,0.000322,30]
[424295954,1780755059000,-4204.8,0.0003221,5]
[424295957,1780755059000,-502.7803597,0.0003222,7]
[424295956,1780755059000,-150.0,0.00032216,7]
[424295955,1780755059000,-150.0,0.00032215,7]
[424295902,1780755059000,-1051.1,0.00032037,30]
[424295942,1780755059000,-1051.1,0.00032163,30]
[424295934,1780755059000,-324.3369,0.00032153,7]
[424295941,1780755059000,-150.0,0.00032162,7]
[424295931,1780755059000,-324.3369,0.00032153,7]
[424295905,1780755059000,-150.0,0.00032054,7]
[424295935,1780755059000,-926.031354,0.00032153,7]
[424295906,1780755059000,-150.0,0.00032055,7]
[424295910,1780755059000,-161.07028204,0.00032082,30]
[424295909,1780755059000,-150.0,0.0003208,7]
[424295908,1780755059000,-1051.1,0.00032075,30]
[424295911,1780755059000,-502.7803597,0.00032086,7]
[424295913,1780755059000,-150.0,0.00032088,7]
[424295923,1780755059000,-150.0,0.00032125,7]
[424295914,1780755059000,-1908.54,0.000321,7]
[424295924,1780755059000,-1051.1,0.00032138,30]
[424295915,1780755059000,-4241.46,0.000321,7]
[424295912,1780755059000,-1051.1,0.00032088,30]
[424295925,1780755059000,-150.0,0.00032142,7]
[424295920,1780755059000,-150.0,0.00032123,7]
[424295922,1780755059000,-1051.1,0.00032125,30]
[424295921,1780755059000,-152.0,0.00032125,4]
[424295916,1780755059000,-1051.1,0.000321,30]
[424295918,1780755059000,-1051.1,0.00032113,30]
[424295919,1780755059000,-502.7803597,0.0003212,7]
[424295929,1780755059000,-324.3369,0.00032153,7]
[424295930,1780755059000,-194.712125,0.00032153,7]
[424295928,1780755059000,-194.712125,0.00032153,7]
[424295917,1780755059000,-150.0,0.00032108,7]
[424295927,1780755059000,-324.3369,0.00032153,7]
[424295997,1780755060000,-353.0,0.0003235,30]
[424295987,1780755060000,-1116.0,0.00032342,30]
[424295998,1780755060000,-1918.0,0.0003235,30]
[424295992,1780755060000,-150.0,0.00032345,2]
[424295995,1780755060000,-2510.0,0.0003235,30]
[424295991,1780755060000,-150.0,0.00032345,2]
[424295993,1780755060000,-150.0,0.00032345,2]
[424295989,1780755060000,-150.0,0.00032345,2]
[424295990,1780755060000,-150.0,0.00032345,2]
[424296001,1780755060000,-204.0,0.0003235,30]
[424295994,1780755060000,-150.0,0.00032345,2]
[424296006,1780755060000,-200.0,0.00032386,2]
[424296014,1780755060000,-502.7803597,0.00032421,7]
[424295999,1780755060000,-360.0,0.0003235,30]
[424296004,1780755060000,-150.0,0.00032364,7]
[424296005,1780755060000,-150.0,0.00032375,7]
[424296000,1780755060000,-786.0,0.0003235,30]
[424296002,1780755060000,-150.0,0.00032352,7]
[424296018,1780755060000,-150.0,0.00032443,7]
[424296008,1780755060000,-502.7803597,0.00032387,7]
[424296012,1780755060000,-187.0,0.0003242,60]
[424296007,1780755060000,-150.0,0.00032387,7]
[424296010,1780755060000,-150.0,0.00032399,7]
[424296016,1780755060000,-150.0,0.00032433,7]
[424295988,1780755060000,-150.0,0.00032345,2]
[424296003,1780755060000,-502.7803597,0.00032354,7]
[424295996,1780755060000,-333.0,0.0003235,30]
[424295960,1780755060000,-150.0,0.00032261,7]
[424295984,1780755060000,-675.0,0.00032339,30]
[424295958,1780755060000,-150.0,0.00032226,7]
[424295962,1780755060000,-150.0,0.00032265,7]
[424295961,1780755060000,-150.0,0.00032261,7]
[424295959,1780755060000,-502.7803597,0.00032253,7]
[424295964,1780755060000,-502.7803597,0.00032287,7]
[424295974,1780755060000,-502.7803597,0.0003232,7]
[424295967,1780755060000,-5000.0,0.00032299,2]
[424295968,1780755060000,-5000.0,0.00032299,2]
[424295973,1780755060000,-400.0,0.00032317,30]
[424295971,1780755060000,-5000.0,0.00032299,2]
[424295963,1780755060000,-150.0,0.00032268,7]
[424295970,1780755060000,-5000.0,0.00032299,2]
[424295983,1780755060000,-1092.0,0.00032339,30]
[424295965,1780755060000,-150.0,0.00032295,7]
[424295972,1780755060000,-150.0,0.00032307,7]
[424295969,1780755060000,-5000.0,0.00032299,2]
[424295976,1780755060000,-699.951217,0.00032329,7]
[424295975,1780755060000,-150.0,0.00032322,7]
[424295979,1780755060000,-699.951217,0.00032329,7]
[424295980,1780755060000,-150.0,0.0003233,7]
[424295977,1780755060000,-699.951217,0.00032329,7]
[424295978,1780755060000,-699.951217,0.00032329,7]
[424295986,1780755060000,-4110.0,0.00032339,30]
[424295981,1780755060000,-150.0,0.00032335,7]
[424295982,1780755060000,-936.0,0.00032339,30]
[424295985,1780755060000,-2972.0,0.00032339,30]
[424295966,1780755060000,-150.0,0.00032295,7]
[424296015,1780755060000,-150.0,0.00032429,7]
[424296021,1780755060000,-699.0,0.00032477,7]
[424296017,1780755060000,-161.07028204,0.00032438,30]
[424296048,1780755060000,-502.7803597,0.00032655,7]
[424296052,1780755060000,-150.0,0.00032696,7]
[424296054,1780755060000,-150.0,0.00032709,7]
[424296055,1780755060000,-150.0,0.00032715,7]
[424296051,1780755060000,-502.7803597,0.00032688,7]
[424296053,1780755060000,-200.0,0.000327,12]
[424296050,1780755060000,-150.0,0.00032675,7]
[424296049,1780755060000,-150.0,0.0003267,7]
[424296057,1780755060000,-150.0,0.00032744,7]
[424296063,1780755060000,-502.7803597,0.00032789,7]
[424296064,1780755060000,-161.07028204,0.00032795,30]
[424296056,1780755060000,-502.7803597,0.00032722,7]
[424296066,1780755060000,-1908.54,0.000328,7]
[424296065,1780755060000,-1399.73,0.000328,14]
[424296058,1780755060000,-150.0,0.00032749,7]
[424296060,1780755060000,-502.7803597,0.00032755,7]
[424296059,1780755060000,-150.0,0.00032755,7]
[424296061,1780755060000,-150.0,0.0003276,7]
[424296062,1780755060000,-150.0,0.00032778,7]
[424296067,1780755060000,-150.0,0.00032803,7]
[424296069,1780755060000,-150.0,0.00032808,7]
[424296070,1780755060000,-150.0,0.00032813,7]
[424296071,1780755060000,-502.7803597,0.00032822,7]
[424296068,1780755060000,-150.0,0.00032806,7]
[424296013,1780755060000,-503.61,0.0003242,60]
[424296044,1780755060000,-150.0,0.0003264,7]
[424296046,1780755060000,-150.0,0.0003265,7]
[424296072,1780755060000,-1104.83716839,0.00032831,2]
[424296045,1780755060000,-150.0,0.00032642,7]
[424296011,1780755060000,-196.0035,0.000324,7]
[424296009,1780755060000,-150.0,0.00032397,7]
[424296020,1780755060000,-150.0,0.00032468,7]
[424296030,1780755060000,-150.0,0.00032536,7]
[424296024,1780755060000,-150.0,0.00032488,7]
[424296029,1780755060000,-150.0,0.00032533,7]
[424296031,1780755060000,-150.0,0.00032537,7]
[424296047,1780755060000,-150.0,0.0003265,7]
[424296023,1780755060000,-502.7803597,0.00032488,7]
[424296022,1780755060000,-150.0,0.00032482,7]
[424296019,1780755060000,-502.7803597,0.00032454,7]
[424296026,1780755060000,-150.0,0.00032502,7]
[424296027,1780755060000,-150.0,0.0003251,7]
[424296028,1780755060000,-502.7803597,0.00032521,7]
[424296033,1780755060000,-150.0,0.00032562,2]
[424296039,1780755060000,-300.0,0.00032602,14]
[424296025,1780755060000,-150.0,0.00032492,7]
[424296036,1780755060000,-502.7803597,0.00032588,7]
[424296038,1780755060000,-150.0,0.00032602,2]
[424296043,1780755060000,-150.0,0.00032633,7]
[424296040,1780755060000,-150.0,0.00032606,7]
[424296035,1780755060000,-150.0,0.00032579,7]
[424296037,1780755060000,-150.0,0.00032589,7]
[424296032,1780755060000,-502.7803597,0.00032555,7]
[424296034,1780755060000,-150.0,0.00032571,7]
[424296041,1780755060000,-502.7803597,0.00032621,7]
[424296042,1780755060000,-150.0,0.00032624,7]
[424296106,1780755061000,-502.7803597,0.00032923,7]
[424296111,1780755061000,-150.0,0.00032955,2]
[424296105,1780755061000,-150.0,0.00032916,7]
[424296107,1780755061000,-183.91632608,0.00032931,11]
[424296102,1780755061000,-150.0,0.00032896,7]
[424296104,1780755061000,-150.0,0.0003291,7]
[424296103,1780755061000,-227.94,0.000329,120]
[424296110,1780755061000,-424.99582952,0.00032955,2]
[424296109,1780755061000,-150.0,0.00032951,7]
[424296108,1780755061000,-150.0,0.00032942,7]
[424296113,1780755061000,-500.0,0.00032955,2]
[424296127,1780755061000,-1455.5170003,0.00033,120]
[424296112,1780755061000,-289.41283274,0.00032955,2]
[424296122,1780755061000,-150.0,0.00032985,7]
[424296114,1780755061000,-500.0,0.00032955,2]
[424296115,1780755061000,-504.47524266,0.00032955,2]
[424296121,1780755061000,-150.0,0.00032966,7]
[424296120,1780755061000,-150.0,0.00032963,7]
[424296118,1780755061000,-406.8677431,0.00032955,2]
[424296119,1780755061000,-502.7803597,0.00032956,7]
[424296117,1780755061000,-400.0,0.00032955,2]
[424296124,1780755061000,-502.7803597,0.00032989,7]
[424296125,1780755061000,-167.8691505,0.00033,120]
[424296100,1780755061000,-1732.82,0.00032896,2]
[424296116,1780755061000,-400.0,0.00032955,2]
[424296101,1780755061000,-1001.87689534,0.00032896,2]
[424296085,1780755061000,-500.0,0.00032877,2]
[424296097,1780755061000,-150.0,0.00032882,7]
[424296129,1780755061000,-240.53528541,0.00033,120]
[424296075,1780755061000,-150.0,0.00032847,7]
[424296078,1780755061000,-150.0,0.00032856,7]
[424296073,1780755061000,-2939.873,0.00032834,33]
[424296077,1780755061000,-502.7803597,0.00032856,7]
[424296076,1780755061000,-150.0,0.00032851,7]
[424296074,1780755061000,-959.65,0.00032836,7]
[424296080,1780755061000,-1000.0,0.00032877,10]
[424296079,1780755061000,-187.12,0.00032876,2]
[424296088,1780755061000,-500.0,0.00032877,2]
[424296089,1780755061000,-500.0,0.00032877,2]
[424296081,1780755061000,-656.0,0.00032877,10]
[424296082,1780755061000,-1005.02,0.00032877,2]
[424296084,1780755061000,-1000.0,0.00032877,120]
[424296087,1780755061000,-500.0,0.00032877,2]
[424296086,1780755061000,-500.0,0.00032877,2]
[424296083,1780755061000,-351.13,0.00032877,2]
[424296090,1780755061000,-500.0,0.00032877,2]
[424296091,1780755061000,-426.75802373,0.00032877,2]
[424296093,1780755061000,-500.0,0.00032877,10]
[424296099,1780755061000,-770.05,0.00032896,30]
[424296094,1780755061000,-500.0,0.00032877,10]
[424296092,1780755061000,-279.65655325,0.00032877,30]
[424296095,1780755061000,-336.80283491,0.00032877,10]
[424296096,1780755061000,-150.0,0.00032878,7]
[424296098,1780755061000,-502.7803597,0.00032889,7]
[424296132,1780755061000,-272.0635658,0.00033,120]
[424296130,1780755061000,-269.77070607,0.00033,120]
[424296123,1780755061000,-150.0,0.00032987,7]
[424296167,1780755061000,-150.0,0.00033033,7]
[424296159,1780755061000,-172.0,0.00033,14]
[424296160,1780755061000,-150.0,0.00033001,7]
[424296162,1780755061000,-150.0,0.00033016,7]
[424296165,1780755061000,-502.7803597,0.00033023,7]
[424296168,1780755061000,-294.849,0.00033033,8]
[424296164,1780755061000,-150.0,0.0003302,7]
[424296163,1780755061000,-6339.11,0.00033017,2]
[424296161,1780755061000,-699.0,0.00033011,8]
[424296169,1780755061000,-2000.0,0.00033041,2]
[424296172,1780755061000,-502.7803597,0.00033056,7]
[424296170,1780755061000,-10000.0,0.00033041,2]
[424296171,1780755061000,-150.0,0.00033054,7]
[424296180,1780755061000,-150.0,0.0003308,2]
[424296179,1780755061000,-150.0,0.0003308,2]
[424296174,1780755061000,-150.0,0.0003307,7]
[424296178,1780755061000,-150.0,0.0003308,2]
[424296177,1780755061000,-150.0,0.0003308,2]
[424296175,1780755061000,-150.0,0.00033078,7]
[424296176,1780755061000,-150.0,0.0003308,2]
[424296181,1780755061000,-150.0,0.0003308,2]
[424296183,1780755061000,-502.7803597,0.0003309,7]
[424296184,1780755061000,-3041.2,0.00033123,14]
[424296182,1780755061000,-150.0,0.00033089,7]
[424296128,1780755061000,-199.86562566,0.00033,120]
[424296166,1780755061000,-12054.391578,0.00033026,2]
[424296157,1780755061000,-1192.346686,0.00033,8]
[424296173,1780755061000,-606.0,0.00033069,5]
[424296148,1780755061000,-192.003428,0.00033,8]
[424296158,1780755061000,-959.549586,0.00033,8]
[424296126,1780755061000,-261.26021912,0.00033,120]
[424296131,1780755061000,-274.85515086,0.00033,120]
[424296134,1780755061000,-244.09040236,0.00033,120]
[424296143,1780755061000,-374.66965498,0.00033,120]
[424296144,1780755061000,-1982.0770789,0.00033,120]
[424296135,1780755061000,-1166.51690649,0.00033,120]
[424296136,1780755061000,-185.82257735,0.00033,120]
[424296138,1780755061000,-178.00347184,0.00033,120]
[424296139,1780755061000,-1934.66696622,0.00033,120]
[424296137,1780755061000,-215.14473434,0.00033,120]
[424296141,1780755061000,-409.49034585,0.00033,120]
[424296142,1780755061000,-596.1039232,0.00033,120]
[424296133,1780755061000,-210.08777575,0.00033,120]
[424296140,1780755061000,-204.1147621,0.00033,120]
[424296149,1780755061000,-192.003428,0.00033,8]
[424296150,1780755061000,-192.003428,0.00033,8]
[424296151,1780755061000,-192.003428,0.00033,8]
[424296155,1780755061000,-294.849,0.00033,8]
[424296147,1780755061000,-574.176334,0.00033,14]
[424296156,1780755061000,-294.849,0.00033,8]
[424296152,1780755061000,-192.003432,0.00033,8]
[424296154,1780755061000,-1497.25535455,0.00033,120]
[424296146,1780755061000,-167.66704668,0.00033,120]
[424296145,1780755061000,-1102.2918016,0.00033,120]
[424296153,1780755061000,-596.1039232,0.00033,120]
[424296226,1780755062000,-1323.30755,0.00033147,7]
[424296228,1780755062000,-1323.30755,0.00033147,7]
[424296218,1780755062000,-192.967881,0.00033147,7]
[424296225,1780755062000,-1323.30755,0.00033147,7]
[424296223,1780755062000,-433.109753,0.00033147,7]
[424296222,1780755062000,-433.109753,0.00033147,7]
[424296224,1780755062000,-433.109753,0.00033147,7]
[424296220,1780755062000,-192.967881,0.00033147,7]
[424296219,1780755062000,-192.967881,0.00033147,7]
[424296217,1780755062000,-192.967881,0.00033147,7]
[424296227,1780755062000,-1323.30755,0.00033147,7]
[424296221,1780755062000,-433.109753,0.00033147,7]
[424296230,1780755062000,-2129.55451,0.00033147,7]
[424296242,1780755062000,-200.0,0.0003316,2]
[424296229,1780755062000,-151.0,0.00033147,7]
[424296239,1780755062000,-151.0,0.00033147,7]
[424296238,1780755062000,-342.548366,0.00033147,7]
[424296241,1780755062000,-161.07028204,0.00033151,30]
[424296231,1780755062000,-2129.55451,0.00033147,7]
[424296233,1780755062000,-2129.55451,0.00033147,7]
[424296234,1780755062000,-342.548366,0.00033147,7]
[424296236,1780755062000,-342.548366,0.00033147,7]
[424296232,1780755062000,-2129.55451,0.00033147,7]
[424296237,1780755062000,-151.0,0.00033147,7]
[424296244,1780755062000,-1090.1243033,0.00033167,2]